Cogmind - Beta 9.4 @@@ ROGUE MODE // 2020.01.12 @ 00:37:18 // Winter2019/RPGLIKE Player: badjay Result: Destroyed by S-27 Virus with Autogun Performance ------------- Evolutions (5) 2500 Regions Visited (16) 3200 Robots Destroyed (416) 2080 Value Destroyed (17840) 17840 Prototype IDs (33) 660 Alien Tech Used (0) 0 Bonus (9414) 9414 TOTAL SCORE: 35694 Bonus ------- Triggered High Security 1000 High Alert Combat Kills 6506 Follower Combat Kills 14 Entered Garrisons 600 Used RIF Installer 1500 Friendly Fire -206 Cogmind --------- Core Integrity 0/600 Matter 300/300 Energy 152/340 System Corruption 0% Temperature Cool (118) Movement Flying (32) Location -5/Factory Parts ------- > --- POWER (2) -------- Cooled Ion Engine Light Nuclear Core > --- PROPULSION (2) --- Cooled VTOL Module Cooled Cesium-ion Thruster > --- UTILITY (10) ----- Advanced Coolant Injector Advanced Targeting Computer Improved Target Analyzer Core Analyzer Armor Integrity Analyzer Energy Filter Improved Particle Charger Weapon Cycler Improved Maneuvering Thrusters Phase Shifter > --- WEAPON (4) ------- Heavy EM Shotgun Heavy EM Shotgun Improved Lightning Gun Improved Lightning Gun > --- INVENTORY (4) ---- Force Rifle Force Rifle Force Rifle Power Sword Peak State ------------ > --- POWER ------------ Cooled Ion Engine Light Nuclear Core > --- PROPULSION ------- Cooled VTOL Module Cooled VTOL Module > --- UTILITY ---------- Advanced Coolant Injector Advanced Targeting Computer Improved Target Analyzer Core Analyzer Armor Integrity Analyzer Energy Filter Advanced Particle Charger Weapon Cycler Improved Maneuvering Thrusters Phase Shifter > --- WEAPON ----------- Heavy EM Shotgun Heavy EM Shotgun Improved Lightning Gun Improved Lightning Gun > --- INVENTORY -------- Force Rifle Force Rifle Force Rifle Power Sword [Rating: 84] Favorites ----------- Power Light Nuclear Core Engine Cooled Ion Engine Power Core Light Nuclear Core Propulsion Cooled VTOL Module Flight Unit Cooled VTOL Module Utility Armor Integrity Analyzer Device Weapon Cycler Processor Armor Integrity Analyzer Protection Core Shielding Weapon Heavy EM Shotgun Energy Gun Heavy EM Shotgun Energy Cannon Cooled Plasma Cannon Slashing Weapon Chainsword Build | -11 -10 -10 -10 -9 -8 -8 -8 -7 -7 -7 -7 -6 -6 -6 -6 -5 ------- Run | Scr Mat Min Exi Min Mat Gar Mat Fac Was Fac Gar Fac Was Fac Gar Fac Slots Evolved 14 | . 4 . . . 3 . . 4 . . . 2 . 1 . . Power 1 | . 1 . . . . . . . . . . . . . . . Propulsion 1 | . 1 . . . . . . . . . . . . . . . Utility 9 | . 1 . . . 1 . . 4 . . . 2 . 1 . . Weapon 3 | . 1 . . . 2 . . . . . . . . . . . Parts Attached 156 | . 17 . . . 11 2 4 15 1 26 12 26 1 37 4 . Power 7 | . 4 . . . 2 . 1 . . . . . . . . . Engine 5 | . 4 . . . . . 1 . . . . . . . . . Core 2 | . . . . . 2 . . . . . . . . . . . Reactor . | . . . . . . . . . . . . . . . . . Propulsion 16 | . 6 . . . 3 . . 2 . 1 . 3 . 1 . . Treads . | . . . . . . . . . . . . . . . . . Leg . | . . . . . . . . . . . . . . . . . Wheel . | . . . . . . . . . . . . . . . . . Hover . | . . . . . . . . . . . . . . . . . Flight 16 | . 6 . . . 3 . . 2 . 1 . 3 . 1 . . Utility 34 | . 4 . . . 1 1 1 6 . 3 . 7 1 10 . . Device 19 | . . . . . . . . 4 . 1 . 4 1 9 . . Storage . | . . . . . . . . . . . . . . . . . Processor 14 | . 4 . . . 1 . 1 2 . 2 . 3 . 1 . . Hackware . | . . . . . . . . . . . . . . . . . Protection 1 | . . . . . . 1 . . . . . . . . . . Artifact . | . . . . . . . . . . . . . . . . . Weapon 99 | . 3 . . . 5 1 2 7 1 22 12 16 . 26 4 . Energy Gun 92 | . 3 . . . 5 . 2 7 1 21 10 15 . 24 4 . Energy Cannon 1 | . . . . . . . . . . . . 1 . . . . Ballistic Gun . | . . . . . . . . . . . . . . . . . Ballistic Cannon . | . . . . . . . . . . . . . . . . . Launcher . | . . . . . . . . . . . . . . . . . Special Weapon . | . . . . . . . . . . . . . . . . . Impact Weapon . | . . . . . . . . . . . . . . . . . Slashing Weapon 6 | . . . . . . 1 . . . 1 2 . . 2 . . Piercing Weapon . | . . . . . . . . . . . . . . . . . Special Melee Weapon . | . . . . . . . . . . . . . . . . . Unidentified Prototypes 16 | . 1 . . . 2 . 2 3 . 1 . 5 . 2 . . Parts Lost 2 | . 1 . . . . . . . 1 . . . . . . . Power 1 | . 1 . . . . . . . . . . . . . . . Propulsion . | . . . . . . . . . . . . . . . . . Utility 1 | . . . . . . . . . 1 . . . . . . . Weapon . | . . . . . . . . . . . . . . . . . Highest Loss Streak 1 | . 1 . . . . . . . 1 . . . . . . . Average Slot Usage (%) 97 | . 89 100 100 100 92 95 99 97 97 98 100 99 100 97 100 100 Engine 7 | . 22 25 25 25 9 . 3 6 6 6 6 5 5 5 5 5 Core 6 | . . . . . 11 18 14 6 6 6 6 5 5 5 5 5 Flight 14 | . 26 25 25 25 21 18 18 13 13 13 13 11 11 11 11 11 Device 17 | . . . . . . . . 14 17 18 20 27 29 28 33 33 Processor 23 | . 23 25 25 25 21 18 25 25 26 26 26 23 23 22 22 22 Energy Gun 23 | . 15 25 25 25 28 27 27 23 26 25 25 23 23 22 22 22 Slashing Weapon 1 | . . . . . . 8 9 3 . . . . . . . . Naked Turns 5 | . 5 . . . . . . . . . . . . . . . Heaviest Build 44 | . 18 18 18 18 21 25 27 35 33 34 34 42 40 44 43 43 Greatest Support 49 | 3 20 20 20 20 22 27 27 44 44 44 44 44 44 49 43 43 Greatest Overweight (x) 2 | . 2 . . . 1 . . . . . . 1 . 1 . . Average Overweight (x) . | . . . . . . . . . . . . . . . . . Largest Inventory Capacity 4 | . . . . . 1 1 1 3 3 4 4 4 4 4 4 4 Average Capacity 2 | . . . . . . 1 1 2 3 3 4 4 4 4 4 4 Most Carried 4 | . . . . . 1 1 1 3 3 4 4 4 4 4 4 4 Average Carried 2 | . . . . . . . 1 2 3 3 3 3 4 4 4 4 Final Capacity 4 | . . . . . 1 1 1 3 3 4 4 4 4 4 4 4 Final Carried 4 | . . . . . 1 1 1 3 3 4 4 4 4 4 4 4 Class Distribution -------------------- 86% | Hacker-Sprinter 12% | Hacker-Mutant Dominant Class ---------------- Hacker-Mutant | -10/Materials Hacker-Mutant | -10/Mines Hacker-Mutant | -10/Exiles Hacker-Mutant | -9/Mines Hacker-Sprinter | -8/Materials Hacker-Sprinter | -8/Garrison Hacker-Sprinter | -8/Materials Hacker-Sprinter | -7/Factory Hacker-Sprinter | -7/Waste Hacker-Sprinter | -7/Factory Hacker-Sprinter | -7/Garrison Hacker-Sprinter | -6/Factory Hacker-Sprinter | -6/Waste Hacker-Sprinter | -6/Factory Hacker-Sprinter | -6/Garrison Hacker-Sprinter | -5/Factory Resources | -11 -10 -10 -10 -9 -8 -8 -8 -7 -7 -7 -7 -6 -6 -6 -6 -5 ----------- Run | Scr Mat Min Exi Min Mat Gar Mat Fac Was Fac Gar Fac Was Fac Gar Fac Matter Collected 1898 | 200 180 . . . 110 30 40 150 . 270 120 260 . 475 63 . Remotely . | . . . . . . . . . . . . . . . . . Salvage Created 19780 | . 890 . . 185 1331 698 1105 1007 . 1896 1502 3974 . 5824 1326 42 Parts 899 | . 63 . . 18 78 58 70 52 . 94 73 153 . 198 37 5 Haulers Intercepted 29 | . 2 . . . 6 . 4 1 . 3 . 5 . 8 . . Recyclers Shooed 4 | . . . . . . . . . . . . . . 4 . . Parts Field Recycled . | . . . . . . . . . . . . . . . . . Retrieved Matter . | . . . . . . . . . . . . . . . . . Parts Self-Destructed . | . . . . . . . . . . . . . . . . . Prevented . | . . . . . . . . . . . . . . . . . Kills | -11 -10 -10 -10 -9 -8 -8 -8 -7 -7 -7 -7 -6 -6 -6 -6 -5 ------- Run | Scr Mat Min Exi Min Mat Gar Mat Fac Was Fac Gar Fac Was Fac Gar Fac Combat Hostiles Destroyed 327 | . 18 . . 9 22 26 19 24 . 37 27 55 . 69 19 2 Guns 258 | . 11 . . 9 18 25 19 13 . 27 21 46 . 51 16 2 AOE 42 | . 6 . . . 1 . . 6 . 5 3 6 . 12 3 . Classes Destroyed 19 | . 7 . . . 4 1 . 2 . . 1 2 . 2 . . Worker 12 | . 1 . . . . . . . . 2 . 3 . 6 . . Builder 6 | . 1 . . . . . . . . . . 1 . 4 . . Tunneler 3 | . . . . . 2 . . . . 1 . . . . . . Hauler 29 | . 2 . . . 6 . 4 1 . 3 . 5 . 8 . . Recycler 6 | . . . . . . . . . . . . 2 . 4 . . Carrier 1 | . . . . . . . . . . . . . . 1 . . Mechanic 1 | . . . . . . . . . . . . . . 1 . . Operator 3 | . 1 . . . . . . 1 . . . 1 . . . . Watcher 27 | . 3 . . . 4 . 4 . . 3 1 7 . 5 . . Swarmer 74 | . 3 . . 4 4 15 6 . . 5 3 9 . 13 11 1 Saboteur 2 | . . . . . . . . . . . . 1 . 1 . . Grunt 150 | . 15 . . 5 9 9 6 13 . 23 9 25 . 32 4 . Brawler 11 | . . . . . 3 . . 1 . . 1 5 . 1 . . Duelist 11 | . . . . . . 1 . 4 . . . 1 . 4 1 . Protector 2 | . . . . . . . . 1 . . . 1 . . . . Sentry 54 | . . . . . 4 . 7 4 . 6 10 8 . 12 2 1 Hunter 12 | . . . . . 2 1 . . . . 2 3 . 4 . . Programmer 11 | . . . . . . . . 1 . 3 1 2 . 3 1 . Behemoth 1 | . . . . . . . . . . . 1 . . . . . Best Kill Streak 17 | . 6 . . 3 9 14 6 5 . 8 11 16 . 17 6 2 Combat Bots Only 14 | . 3 . . 3 8 14 6 5 . 6 7 7 . 9 6 2 Max Kills in Single Turn 6 | . 3 . . 1 2 3 2 2 . 3 2 4 . 6 3 1 Gunslinging 2 | . 1 . . . . 2 1 . . 1 1 2 . 1 1 . Exploded 3 | . 3 . . . 1 . . 2 . 2 2 2 . 2 2 . Melee . | . . . . . . . . . . . . . . . . . Uniques/NPCs Destroyed . | . . . . . . . . . . . . . . . . . Combat | -11 -10 -10 -10 -9 -8 -8 -8 -7 -7 -7 -7 -6 -6 -6 -6 -5 -------- Run | Scr Mat Min Exi Min Mat Gar Mat Fac Was Fac Gar Fac Was Fac Gar Fac Damage Taken 7423 | . 525 39 . 232 417 277 249 478 58 766 1200 984 . 1361 571 266 Core 5972 | . 445 30 . 193 336 213 212 378 46 608 950 796 . 1078 466 221 Absorbed by Shields 184 | . . . . . . . . . . . 97 . . . 87 . Redirected to Core 4939 | . 269 30 . 125 281 196 138 334 46 513 844 654 . 1005 350 154 Core Remaining (%) 84 | 100 . . . 100 . . 100 . . . 87 . . . 36 . Volleys Fired 570 | . 53 3 . 17 55 35 37 47 . 56 45 74 . 100 44 4 Largest 4 | . 2 2 . 2 3 3 3 4 . 4 4 4 . 4 4 4 Hottest 260 | . 90 90 . 90 150 150 150 170 . 220 220 200 . 240 260 220 Shots Fired 1726 | . 66 6 . 34 146 93 107 124 . 178 160 290 . 385 121 16 Gun 1726 | . 66 6 . 34 146 93 107 124 . 178 160 290 . 385 121 16 Cannon . | . . . . . . . . . . . . . . . . . Launcher . | . . . . . . . . . . . . . . . . . Special . | . . . . . . . . . . . . . . . . . Kinetic . | . . . . . . . . . . . . . . . . . Thermal 141 | . . . . . . . . 5 . 13 34 12 . 20 57 . Explosive . | . . . . . . . . . . . . . . . . . Electromagnetic 1585 | . 66 6 . 34 146 93 107 119 . 165 126 278 . 365 64 16 Robot Hit Streak 85 | . 10 3 . 11 42 43 43 68 . 68 54 80 . 67 75 85 Robot Miss Streak 3 | . 3 1 . 1 2 1 2 2 . 2 1 1 . 2 2 1 Penetration Max . | . . . . . . . . . . . . . . . . . Secondary Targets 51 | . 1 . . 4 3 5 3 1 . 6 5 7 . 13 3 . Max Gunslinging Chain 2 | . 1 . . 1 1 2 1 1 . 2 1 2 . 2 1 . Shots Hit Robots 1319 | . 44 5 . 28 120 56 80 113 . 143 124 210 . 293 89 14 Core Hits 906 | . 31 1 . 11 48 44 46 64 . 96 83 195 . 231 49 7 Critical Hits 122 | . . . . . 1 5 4 8 . 19 14 22 . 39 9 1 Critical Kills 47 | . . . . . 1 2 1 . . 9 7 13 . 11 3 . Critical Parts Destroyed 67 | . . . . . . 3 3 8 . 9 6 9 . 22 6 1 Melee Attacks 25 | . . . . . . 11 . . . . 10 . . 4 . . Impact . | . . . . . . . . . . . . . . . . . Slashing 25 | . . . . . . 11 . . . . 10 . . 4 . . Piercing . | . . . . . . . . . . . . . . . . . Sneak Attacks . | . . . . . . . . . . . . . . . . . Combat Hostiles . | . . . . . . . . . . . . . . . . . Follow-up Attacks . | . . . . . . . . . . . . . . . . . Damage Inflicted 34825 | . 1342 52 . 427 2214 1222 1651 2775 . 3793 2998 6321 . 9628 2199 203 Guns 27673 | . 772 52 . 427 1942 1057 1523 2239 . 3099 2463 5002 . 6843 2051 203 Cannons . | . . . . . . . . . . . . . . . . . Explosions 7152 | . 570 . . . 272 165 128 536 . 694 535 1319 . 2785 148 . Melee . | . . . . . . . . . . . . . . . . . Ramming . | . . . . . . . . . . . . . . . . . Kinetic . | . . . . . . . . . . . . . . . . . Thermal 9853 | . 570 . . . 272 165 128 649 . 1115 1101 1272 . 3248 1333 . Explosive 404 | . . . . . . . . . . . . 404 . . . . Electromagnetic 24568 | . 772 52 . 427 1942 1057 1523 2126 . 2678 1897 4645 . 6380 866 203 Impact . | . . . . . . . . . . . . . . . . . Slashing . | . . . . . . . . . . . . . . . . . Piercing . | . . . . . . . . . . . . . . . . . Highest Corruption 6 | . . . . . 2 2 2 . . 1 2 1 6 6 5 . Average Corruption 3 | . . . . . 2 2 2 . . 1 1 1 2 4 5 . Corruption Purged 3 | . . . . . . . . . . . . . . 3 . . Effects 119 | . . . . . 6 6 3 . . 2 10 1 . 68 23 . Message Errors 25 | . . . . . 2 1 1 . . 1 1 . . 15 4 . Matter Fused 15 | . . . . . . . . . . . . . . 12 3 . Heat Flow Errors 7 | . . . . . . . . . . . 1 . . 6 . . Energy Discharges 17 | . . . . . 1 1 1 . . 1 2 1 . 8 2 . Parts Rejected 1 | . . . . . . . . . . . . . . 1 . . Data Loss (minor) 11 | . . . . . 1 . . . . . 1 . . 8 1 . Data Loss (major) 4 | . . . . . . . . . . . . . . 1 3 . Targeting Errors 30 | . . . . . 2 2 1 . . . 5 . . 12 8 . Weapon Failures 9 | . . . . . . 2 . . . . . . . 5 2 . Overload Shots 14 | . . . . . . . . . . 10 4 . . . . . Overflow Damage 401 | . 49 . . . . . . . . 67 6 41 . 238 . . Projectiles . | . . . . . . . . . . . . . . . . . Explosions 401 | . 49 . . . . . . . . 67 6 41 . 238 . . Melee . | . . . . . . . . . . . . . . . . . Knockbacks . | . . . . . . . . . . . . . . . . . Impact . | . . . . . . . . . . . . . . . . . Kinetic . | . . . . . . . . . . . . . . . . . Secondary . | . . . . . . . . . . . . . . . . . Self-Inflicted Damage 855 | . 111 . . . . . . 31 . 118 83 137 . 329 46 . Shots 22 | . 3 . . . . . . 1 . 4 2 5 . 6 1 . Rammed . | . . . . . . . . . . . . . . . . . Targets Rammed . | . . . . . . . . . . . . . . . . . Kicked . | . . . . . . . . . . . . . . . . . Crushed . | . . . . . . . . . . . . . . . . . Highest Temperature 386 | . 266 58 . 144 386 126 101 298 . 190 206 196 . 227 199 186 Average Temperature 88 | . 82 21 . 46 114 40 35 83 . 74 98 97 . 98 106 118 Received Heat Transfer 1813 | . 234 40 . 93 153 90 72 177 . 210 243 168 . 288 45 . Effects 2 | . 1 . . . 1 . . . . . . . . . . . Interference 2 | . 1 . . . 1 . . . . . . . . . . . Siege Activations . | . . . . . . . . . . . . . . . . . Robots Corrupted 35 | . 1 . . . 3 1 1 6 . 5 3 5 . 10 . . Combat Hostiles 27 | . 1 . . . 3 1 . 5 . 5 3 3 . 6 . . Parts Fried 189 | . 2 . . 1 10 4 13 15 . 14 20 36 . 65 7 2 Impact Corruptions . | . . . . . . . . . . . . . . . . . Robots Melted 1 | . . . . . . . . . . . . . . . 1 . Combat Hostiles . | . . . . . . . . . . . . . . . . . Parts Melted 16 | . 1 . . . . . . 1 . 1 3 2 . 4 4 . Heat Transferred 11121 | . 800 . . . 350 250 50 610 . 1111 1501 1207 . 3416 1826 . Parts Sabotaged . | . . . . . . . . . . . . . . . . . Parts Stolen . | . . . . . . . . . . . . . . . . . Parts Stripped . | . . . . . . . . . . . . . . . . . Power Chain Reactions 73 | . 7 . . . 3 3 3 8 . 8 7 15 . 16 3 . Missiles Intercepted . | . . . . . . . . . . . . . . . . . Alert | -11 -10 -10 -10 -9 -8 -8 -8 -7 -7 -7 -7 -6 -6 -6 -6 -5 ------- Run | Scr Mat Min Exi Min Mat Gar Mat Fac Was Fac Gar Fac Was Fac Gar Fac Peak Influence 2581 | . 460 179 . 225 765 1500 833 940 329 698 914 1809 1115 2581 2466 1389 Average Influence 862 | . 214 179 . 137 435 1048 690 672 326 365 549 992 1102 1246 2198 1310 Maximum Alert Level 5 | . 2 . . 1 3 4 3 3 1 2 3 5 4 5 5 4 Low Security (%) 10 | 100 46 100 . 60 18 . . . . 11 8 . . . . . Level 1 13 | . 38 . . 39 21 . . 13 100 47 23 . . . . . Level 2 22 | . 14 . . . 49 17 48 24 . 40 36 25 . 11 . . Level 3 26 | . . . . . 10 33 51 62 . . 30 39 . 37 . . Level 4 14 | . . . . . . 48 . . . . . 26 100 26 . 100 Level 5 11 | . . . . . . . . . . . . 1 . 21 100 . High Security 1 | . . . . . . . . . . . . 6 . 2 . . Max Security . | . . . . . . . . . . . . . . . . . Squads Dispatched 47 | . 3 . . . 3 . 2 3 . 9 . 10 . 17 . . Investigation 14 | . 2 . . . 2 . 1 . . 4 . 1 . 4 . . Extermination 5 | . . . . . . . . 1 . 1 . 1 . 2 . . Reinforcement 10 | . 1 . . . . . 1 1 . 2 . 2 . 3 . . Assault 11 | . . . . . 1 . . 1 . . . 3 . 6 . . Garrison 7 | . . . . . . . . . . 2 . 3 . 2 . . Intercept . | . . . . . . . . . . . . . . . . . Construction Impeded 2 | . . . . . . . . . . 1 . . . 1 . . Haulers Reinforced 5 | . . . . . . . . 1 . 1 . 1 . 2 . . Stealth | -11 -10 -10 -10 -9 -8 -8 -8 -7 -7 -7 -7 -6 -6 -6 -6 -5 --------- Run | Scr Mat Min Exi Min Mat Gar Mat Fac Was Fac Gar Fac Was Fac Gar Fac Distress Signals 11 | . 4 . . . 1 . 4 . . . . 2 . . . . Communications Jammed . | . . . . . . . . . . . . . . . . . Distress Signals . | . . . . . . . . . . . . . . . . . Times Spotted 436 | . 28 11 . 13 37 27 25 30 4 42 27 70 5 90 19 8 Peak Tracking Total 14 | . 5 14 . 4 6 5 3 5 4 5 7 7 5 9 10 6 Tactical Retreats 23 | . . 2 . 2 1 3 1 2 . 1 1 3 . 4 2 1 Traps | -11 -10 -10 -10 -9 -8 -8 -8 -7 -7 -7 -7 -6 -6 -6 -6 -5 ------- Run | Scr Mat Min Exi Min Mat Gar Mat Fac Was Fac Gar Fac Was Fac Gar Fac Traps Triggered 34 | . 3 . . . 1 7 . 1 . 2 3 3 . 3 11 . Indirectly . | . . . . . . . . . . . . . . . . . Trap Hack Attempts . | . . . . . . . . . . . . . . . . . Triggered . | . . . . . . . . . . . . . . . . . Disarmed . | . . . . . . . . . . . . . . . . . Reprogrammed 4 | . . . . . 4 . . . . . . . . . . . Reused . | . . . . . . . . . . . . . . . . . Traps Extracted . | . . . . . . . . . . . . . . . . . Installed . | . . . . . . . . . . . . . . . . . Triggered 2 | . 1 . . . . . . 1 . . . . . . . . Machines | -11 -10 -10 -10 -9 -8 -8 -8 -7 -7 -7 -7 -6 -6 -6 -6 -5 ---------- Run | Scr Mat Min Exi Min Mat Gar Mat Fac Was Fac Gar Fac Was Fac Gar Fac Machines Disabled 59 | . 2 . . . 1 7 1 8 . 1 2 10 . 23 4 . Max in Single Turn 17 | . 1 . . . 1 2 1 2 . 1 1 6 . 17 1 . Garrison Access 12 | . . . . . . . 1 1 . 3 . 3 . 3 . 1 Garrison Relay 11 | . . . . . . 4 . . . . 3 . . . 4 . Phase Generator 1 | . . . . . . 1 . . . . . . . . . . Machines Sabotaged . | . . . . . . . . . . . . . . . . . Garrisons Compromised . | . . . . . . . . . . . . . . . . . Overloaded Fab Kills . | . . . . . . . . . . . . . . . . . Fab Network Shutdowns 1 | . . . . . . . . . . . . . . 1 . . Hacking | -11 -10 -10 -10 -9 -8 -8 -8 -7 -7 -7 -7 -6 -6 -6 -6 -5 --------- Run | Scr Mat Min Exi Min Mat Gar Mat Fac Was Fac Gar Fac Was Fac Gar Fac Machines Accessed 90 | . 5 . 1 . 8 . 11 6 . 21 . 11 . 26 . 1 Terminals 60 | . 5 . . . 6 . 9 3 . 16 . 7 . 14 . . Fabricators 6 | . . . . . . . . . . 1 . . . 5 . . Repair Stations 1 | . . . . . . . . . . . . . . 1 . . Recycling Units 4 | . . . . . 1 . 1 1 . . . . . 1 . . Scanalyzers 2 | . . . . . . . . 1 . . . . . 1 . . Garrison Access 16 | . . . . . 1 . 1 1 . 4 . 4 . 4 . 1 Total Hacks 382 | . 28 . 23 . 39 . 51 23 . 81 . 38 . 98 . 1 Successful 229 | . 14 . 23 . 32 . 35 12 . 42 . 19 . 51 . 1 Failed 150 | . 14 . . . 6 . 16 11 . 38 . 19 . 46 . . Catastrophic 21 | . 1 . . . . . 5 . . 10 . 1 . 4 . . Database Lockouts 5 | . . . . . 2 . . . . 2 . . . 1 . . Manual 236 | . 26 . . . 22 . 36 13 . 48 . 31 . 60 . . Terminals 296 | . 28 . . . 32 . 46 16 . 73 . 33 . 68 . . Fabricators 19 | . . . . . . . . . . 1 . . . 18 . . Repair Stations 3 | . . . . . . . . . . . . . . 3 . . Recycling Units 17 | . . . . . 5 . 4 5 . . . . . 3 . . Scanalyzers 3 | . . . . . . . . 1 . . . . . 2 . . Garrison Access 21 | . . . . . 2 . 1 1 . 7 . 5 . 4 . 1 Terminal Hacks 115 | . 5 . 23 . 15 . 20 4 . 21 . 6 . 21 . . Record 23 | . . . 23 . . . . . . . . . . . . . Part Schematic 4 | . . . . . . . . 1 . 1 . . . 2 . . Robot Schematic 2 | . . . . . . . . . . 1 . . . 1 . . Robot Analysis 9 | . . . . . . . 3 2 . 1 . 1 . 2 . . Prototype ID Bank 15 | . 3 . . . 2 . 5 . . 3 . . . 2 . . Level Access Points 4 | . 1 . . . 1 . . . . 1 . 1 . . . . Branch Access Points 5 | . 1 . . . 1 . 1 . . 1 . 1 . . . . Emergency Access Points 1 | . . . . . . . . . . 1 . . . . . . Machine Index 1 | . . . . . . . . . . 1 . . . . . . Terminal Index 6 | . . . . . 1 . 2 . . 1 . 1 . 1 . . Fabricator Index 1 | . . . . . . . . . . . . . . 1 . . Alert Level 2 | . . . . . 2 . . . . . . . . . . . Unreport Threat 19 | . . . . . . . 6 . . 6 . 2 . 5 . . Reprogram Traps 2 | . . . . . 2 . . . . . . . . . . . Reinforcement Status 1 | . . . . . . . . . . 1 . . . . . . Recall Investigation 3 | . . . . . 1 . . . . . . . . 2 . . Recall Extermination 1 | . . . . . . . . . . . . . . 1 . . Recall Reinforcements 3 | . . . . . . . 1 . . . . . . 2 . . Recall Assault 1 | . . . . . . . . . . . . . . 1 . . Hauler Manifests 6 | . . . . . 2 . 1 1 . 1 . . . 1 . . Registered Components 2 | . . . . . 1 . . . . 1 . . . . . . Registered Prototypes 1 | . . . . . . . . . . 1 . . . . . . Zone Layout 3 | . . . . . 2 . 1 . . . . . . . . . Fabricator Hacks 9 | . . . . . . . . . . . . . . 9 . . Load Schematic 5 | . . . . . . . . . . . . . . 5 . . Build 4 | . . . . . . . . . . . . . . 4 . . Repair Station Hacks 2 | . . . . . . . . . . . . . . 2 . . Scan Component 1 | . . . . . . . . . . . . . . 1 . . Repair 1 | . . . . . . . . . . . . . . 1 . . Recycling Unit Hacks 2 | . . . . . 1 . 1 . . . . . . . . . Report Inventory 2 | . . . . . 1 . 1 . . . . . . . . . Scanalyzer 3 | . . . . . . . . 1 . . . . . 2 . . Insert Component 2 | . . . . . . . . 1 . . . . . 1 . . Analyze 1 | . . . . . . . . . . . . . . 1 . . Garrison Access Hacks 16 | . . . . . 2 . 1 1 . 4 . 3 . 4 . 1 Unlock Access 3 | . . . . . 1 . . . . 1 . . . 1 . . Seal Access 12 | . . . . . . . 1 1 . 3 . 3 . 3 . 1 Coupler Status 1 | . . . . . 1 . . . . . . . . . . . Unauthorized Hacks 199 | . 23 . . . 29 . 26 17 . 43 . 32 . 29 . . Terminals 67 | . 9 . . . 11 . 10 4 . 15 . 9 . 9 . . Track 27 | . 3 . . . 5 . 6 1 . 6 . 2 . 4 . . Assimilate 11 | . 1 . . . 2 . . . . 3 . 3 . 2 . . Botnet 19 | . 3 . . . 3 . 3 1 . 3 . 3 . 3 . . Disrupt 4 | . 1 . . . . . . 1 . 2 . . . . . . Operators 6 | . 1 . . . 1 . 1 1 . 1 . 1 . . . . Fabricators 4 | . . . . . . . . . . 1 . . . 3 . . Report 1 | . . . . . . . . . . . . . . 1 . . Prioritize 1 | . . . . . . . . . . . . . . 1 . . Siphon 1 | . . . . . . . . . . . . . . 1 . . Download 1 | . . . . . . . . . . 1 . . . . . . Repair Stations . | . . . . . . . . . . . . . . . . . Recycling Units 9 | . . . . . 3 . 3 2 . . . . . 1 . . Monitor 3 | . . . . . 1 . 1 1 . . . . . . . . Reject 3 | . . . . . 1 . 1 1 . . . . . . . . Mask 3 | . . . . . 1 . 1 . . . . . . 1 . . Scanalyzers . | . . . . . . . . . . . . . . . . . Garrison Access 2 | . . . . . . . . . . 1 . 1 . . . . Watchers 2 | . . . . . . . . . . 1 . 1 . . . . Data Cores Recovered 1 | . . . . . . . . . . . . 1 . . . . Used . | . . . . . . . . . . . . . . . . . Hacking Detections 65 | . 5 . . . 5 . 9 5 . 16 . 8 . 17 . . Full Trace Events 7 | . 1 . . . 1 . 1 . . 2 . . . 2 . . Feedback Events . | . . . . . . . . . . . . . . . . . Feedback Blocked . | . . . . . . . . . . . . . . . . . Robot Schematics Acquired 2 | . . . . . . . . . . 1 . . . 1 . . Robots Built 2 | . . . . . . . . . . . . . . 2 . . Matter 441 | . . . . . . . . . . . . . . 441 . . Time 201 | . . . . . . . . . . . . . . 201 . . Total Robot Build Rating 8 | . . . . . . . . . . . . . . 8 . . Part Schematics Acquired 5 | . . . . . . . . 1 . 2 . . . 2 . . Parts Built 4 | . . . . . . . . . . . . . . 4 . . Matter 424 | . . . . . . . . . . . . . . 424 . . Time 164 | . . . . . . . . . . . . . . 164 . . Total Part Build Rating 24 | . . . . . . . . . . . . . . 24 . . Parts Repaired 1 | . . . . . . . . . . . . . . 1 . . Time 43 | . . . . . . . . . . . . . . 43 . . Parts Recycled . | . . . . . . . . . . . . . . . . . Recycled Matter . | . . . . . . . . . . . . . . . . . Retrieved Matter . | . . . . . . . . . . . . . . . . . Retrieved Components . | . . . . . . . . . . . . . . . . . Parts Scanalyzed 1 | . . . . . . . . . . . . . . 1 . . Part Schematics Acquired 1 | . . . . . . . . . . . . . . 1 . . Parts Damaged . | . . . . . . . . . . . . . . . . . Bothacking | -11 -10 -10 -10 -9 -8 -8 -8 -7 -7 -7 -7 -6 -6 -6 -6 -5 ------------ Run | Scr Mat Min Exi Min Mat Gar Mat Fac Was Fac Gar Fac Was Fac Gar Fac Used RIF Installer 3 | . . . . . . 1 . . . . 1 . . . 1 . Coupler Efficiency 2 | . . . . . . . . . . . 1 . . . 1 . Robots Hacked . | . . . . . . . . . . . . . . . . . Non-combat . | . . . . . . . . . . . . . . . . . Combat . | . . . . . . . . . . . . . . . . . Robot Hacks Applied . | . . . . . . . . . . . . . . . . . Relay Couplers Released 17 | . . . . . . 6 . . . . 5 . . . 6 . Machine Destruction 17 | . . . . . . 6 . . . . 5 . . . 6 . Robots Rewired 3 | . . . . . 2 . . . . . . . . 1 . . Allies Hacked 1 | . . . . . . . . . . . . . . 1 . . Hacks Repelled . | . . . . . . . . . . . . . . . . . Allies | -11 -10 -10 -10 -9 -8 -8 -8 -7 -7 -7 -7 -6 -6 -6 -6 -5 -------- Run | Scr Mat Min Exi Min Mat Gar Mat Fac Was Fac Gar Fac Was Fac Gar Fac Total Allies 14 | . . . . . 4 . . . . 3 . 2 . 5 . . Largest Group 4 | . . . . . 2 2 1 1 . 1 1 1 . 4 . . Highest-Rated Group 106 | . . . . . 45 20 10 10 . 26 26 26 . 106 . . Highest-Rated Ally 37 | . . . . . 29 10 10 10 . 26 26 26 . 37 . . Total Orders 47 | . . . . . 10 3 2 2 . 4 1 9 . 16 . . STAY 14 | . . . . . 1 1 . 1 . 1 1 2 . 7 . . GOTO 13 | . . . . . 4 . 1 . . 2 . 4 . 2 . . FOLLOW 19 | . . . . . 5 2 1 1 . 1 . 3 . 6 . . EXPLORE 1 | . . . . . . . . . . . . . . 1 . . Ally Attacks 22 | . . . . . 21 . . . . . . . . 1 . . Total Damage 300 | . . . . . 261 . . . . . . . . 39 . . Kills 4 | . . . . . 4 . . . . . . . . . . . Allies Corrupted . | . . . . . . . . . . . . . . . . . Allies Melted . | . . . . . . . . . . . . . . . . . Intel | -11 -10 -10 -10 -9 -8 -8 -8 -7 -7 -7 -7 -6 -6 -6 -6 -5 ------- Run | Scr Mat Min Exi Min Mat Gar Mat Fac Was Fac Gar Fac Was Fac Gar Fac Robot Analysis Total 9 | . . . . . . . 3 2 . 1 . 1 . 2 . . Derelict Logs Recovered 2 | . . 1 . 1 . . . . . . . . . . . . Drone Launches 2 | . . . . . . . . . . . . . . 2 . . Drone Recoveries . | . . . . . . . . . . . . . . . . . Exploration | -11 -10 -10 -10 -9 -8 -8 -8 -7 -7 -7 -7 -6 -6 -6 -6 -5 ------------- Run | Scr Mat Min Exi Min Mat Gar Mat Fac Was Fac Gar Fac Was Fac Gar Fac Turns Passed 9090 | 14 668 157 47 258 526 639 393 615 26 1110 596 1167 24 2253 553 44 Spaces Moved 15918 | 28 965 399 127 448 797 936 702 1210 77 2503 958 2338 80 3642 603 105 Core 39 | 28 11 . . . . . . . . . . . . . . . Treads . | . . . . . . . . . . . . . . . . . Legs . | . . . . . . . . . . . . . . . . . Wheels . | . . . . . . . . . . . . . . . . . Hover . | . . . . . . . . . . . . . . . . . Flight 15879 | . 954 399 127 448 797 936 702 1210 77 2503 958 2338 80 3642 603 105 Fastest Speed 26 | 50 37 37 37 37 32 32 32 26 26 26 26 26 26 26 32 32 Average Speed 32 | 50 37 37 37 37 32 32 32 31 30 31 31 32 27 31 32 32 Slowest Speed 150 | 50 150 37 37 37 120 32 32 32 32 35 32 100 32 97 32 32 Overloaded Moves 227 | . . . . . . . . 6 20 48 12 22 59 60 . . Propulsion Burnouts . | . . . . . . . . . . . . . . . . . Robots Hopped 147 | . 7 5 . 6 17 . . 6 2 23 3 22 . 56 . . Cave-ins Triggered . | . . . . . . . . . . . . . . . . . Exploration Rate (%) 63 | 2 93 68 50 97 59 89 75 30 70 58 78 61 88 79 83 6 Regions Visited 16 Branch Regions 3 Pre-discovered Areas 2 | . . . 1 1 . . . . . . . . . . . . Known Exits Taken 5 | . 1 . . . 1 . 1 . . 1 . . . 1 . . Unknown Exits Taken 4 | 1 . 1 1 1 . . . . . . . . . . . . Scrap Searched 4 | . . 1 . 3 . . . . . . . . . . . . Spaces Dug 6 | . . . . . . 2 . . . . . . . 4 . . Terrain Destroyed 521 | . 25 . . . 6 92 15 29 . 30 30 128 . 151 15 . Melee 6 | . . . . . . 2 . . . . . . . 4 . . Projectile 1 | . . . . . . . . . . . 1 . . . . . AOE 514 | . 25 . . . 6 90 15 29 . 30 29 128 . 147 15 . Actions | -11 -10 -10 -10 -9 -8 -8 -8 -7 -7 -7 -7 -6 -6 -6 -6 -5 --------- Run | Scr Mat Min Exi Min Mat Gar Mat Fac Was Fac Gar Fac Was Fac Gar Fac Total 18516 | 27 1193 396 126 499 926 1184 788 1358 76 2683 1142 2581 81 4462 885 109 Wait 1172 | . 131 . . 25 39 44 25 46 1 63 52 91 . 627 28 . Move 15614 | 27 950 388 126 435 762 934 701 1198 73 2456 950 2297 79 3533 600 105 Hop 139 | . 7 5 . 6 17 . . 6 1 23 3 19 . 52 . . Pick Up 19 | . . . . . 1 1 . 8 . 2 3 3 . 1 . . Fast Attach 88 | . 16 . . . 11 2 4 12 1 12 . 13 . 17 . . Attach 3 | . . . . . . 1 . 1 . . 1 . . . . . Detach 2 | . . . . . . . . . . 1 1 . . . . . Swap 67 | . 2 . . . . . . 2 . 14 11 13 1 20 4 . Drop 74 | . 4 . . . 10 . 4 14 . 9 3 14 1 15 . . Fire 570 | . 53 3 . 17 55 35 37 47 . 56 45 74 . 100 44 4 Melee 25 | . . . . . . 11 . . . . 10 . . 4 . . Ram . | . . . . . . . . . . . . . . . . . Kick . | . . . . . . . . . . . . . . . . . Crush . | . . . . . . . . . . . . . . . . . Escape Stasis 361 | . . . . . . 126 . . . . 15 . . 18 202 . Rewire 18 | . . . . . 6 11 . . . . . . . 1 . . Trap . | . . . . . . . . . . . . . . . . . Miscellaneous 364 | . 30 . . 16 25 19 17 24 . 47 48 57 . 74 7 . Route ------- -11/Scrapyard -10/Materials (discovered 4 exits: *Mat x3 / *Min) -10/Mines -10/Exiles -9/Mines (discovered 2 exits: *Mat x2) -8/Materials (discovered 4 exits: *Fac x3 / Gar) -8/Garrison (discovered 3 exits: *Mat x3) -8/Materials (discovered 2 exits: *Fac x2) -7/Factory (discovered 3 exits: *Fac x2 / *Sto) -7/Waste -7/Factory (discovered 8 exits: *Fac x4 / *Sto / *Low x2 / Gar) -7/Garrison (discovered 3 exits: *Fac x3) -6/Factory (discovered 6 exits: *Fac x4 / *Low x2) -6/Waste -6/Factory (discovered 6 exits: *Fac x4 / *Low / Gar) -6/Garrison (discovered 3 exits: *Fac x3) -5/Factory History --------- Turn | Location | Event 5 | -11/Scrapyard | Discovered new exit (range 14) 15 | -11/Scrapyard | Entered Materials 20 | -10/Materials | Upgraded with Power slot (x1) 20 | -10/Materials | Upgraded with Propulsion slot (x1) 51 | -10/Materials | Upgraded with Utility slot (x1) 124 | -10/Materials | Discovered new exit (range 15) 249 | -10/Materials | Discovered new exit (range 10) 330 | -10/Materials | Build established: Hacker-Mutant 398 | -10/Materials | Identified exit to Mines 398 | -10/Materials | Identified exit to Materials 398 | -10/Materials | Reached level 2 408 | -10/Materials | Upgraded with Weapon slot (x1) 683 | -10/Materials | Entered Mines 685 | -10/Mines | Reached level 3 685 | -10/Mines | Learned Materials emergency access door positions 747 | -10/Mines | Met a Derelict bent on vengeance 769 | -10/Mines | Deemed a non-threat by the Exiles lab entrance 769 | -10/Mines | Discovered new exit (range 5) 795 | -10/Mines | Assembled infested the area 840 | -10/Mines | Entered Exiles 850 | -10/Exiles | Met 8R-AWN 856 | -10/Exiles | Met EX-HEX 871 | -10/Exiles | Met EX-DEC 873 | -10/Exiles | Learned location of Zion (-7) 884 | -10/Exiles | Discovered new exit (range 10) 887 | -10/Exiles | Entered Mines 1009 | -9/Mines | Reached level 4 1034 | -9/Mines | Discovered new exit (range 14) 1110 | -9/Mines | Learned location of Storage (-7) 1113 | -9/Mines | Learned Materials machine intel 1123 | -9/Mines | Discovered new exit (range 7) 1127 | -9/Mines | Joined a pair of Derelicts in attacking an 0b10 outpost 1145 | -9/Mines | Entered Materials 1147 | -8/Materials | Loaded intel: 49 machine locations 1147 | -8/Materials | Reached level 5 1148 | -8/Materials | Upgraded with Weapon slot (x1) 1249 | -8/Materials | Identified exit to Factory 1249 | -8/Materials | Central database locked down 1345 | -8/Materials | Reached level 6 1501 | -8/Materials | Build established: Hacker-Sprinter 1545 | -8/Materials | First assault squad dispatched 1559 | -8/Materials | Reached level 7 1575 | -8/Materials | Upgraded with Weapon slot (x1) 1613 | -8/Materials | Upgraded with Utility slot (x1) 1644 | -8/Materials | Destroyed 8 combat bots 1670 | -8/Materials | Identified exit to Garrison 1671 | -8/Materials | Entered Garrison 1671 | -8/Garrison | Accompanied by 2 allies 1673 | -8/Garrison | Reached level 8 1725 | -8/Garrison | Triggered checkpoint 1737 | -8/Garrison | Garrison Relay disabled 1740 | -8/Garrison | Triggered checkpoint 1787 | -8/Garrison | Reached level 9 1824 | -8/Garrison | Triggered checkpoint 1864 | -8/Garrison | Destroyed 14 combat bots 1875 | -8/Garrison | Discovered new exit (range 12) 1888 | -8/Garrison | Triggered checkpoint 1909 | -8/Garrison | Garrison Relay disabled 1995 | -8/Garrison | Discovered new exit (range 12) 2012 | -8/Garrison | Triggered checkpoint 2030 | -8/Garrison | Garrison Relay disabled 2030 | -8/Garrison | Reached level 10 2112 | -8/Garrison | Discovered new exit (range 9) 2117 | -8/Garrison | Installed Relay Interface Framework 2126 | -8/Garrison | Garrison Relay disabled 2132 | -8/Garrison | Triggered checkpoint 2201 | -8/Garrison | Phase Generator disabled 2202 | -8/Garrison | Triggered checkpoint 2220 | -8/Garrison | Reached level 11 2236 | -8/Garrison | Triggered checkpoint 2310 | -8/Garrison | Entered Materials 2310 | -8/Materials | Accompanied by 1 ally 2522 | -8/Materials | Discovered exit to Factory (range 14) 2575 | -8/Materials | Reached level 12 2685 | -8/Materials | Discovered exit to Factory (range 5) 2703 | -8/Materials | Entered Factory 2703 | -7/Factory | Accompanied by 1 ally 2705 | -7/Factory | Reached level 13 2711 | -7/Factory | Upgraded with Utility slot (x3) 2768 | -7/Factory | Discovered new exit (range 4) 2828 | -7/Factory | Reached level 14 2999 | -7/Factory | Discovered new exit (range 15) 3103 | -7/Factory | First assault squad dispatched 3178 | -7/Factory | Reached level 15 3184 | -7/Factory | Upgraded with Utility slot (x1) 3308 | -7/Factory | Discovered new exit (range 14) 3318 | -7/Factory | Sucked down chute 3318 | -7/Factory | Entered Waste 3327 | -7/Waste | Spotted C-40 Crusher 3331 | -7/Waste | Spotted C-40 Crusher 3334 | -7/Waste | Spotted C-40 Crusher 3336 | -7/Waste | Spotted C-40 Crusher 3337 | -7/Waste | Crushed by Compactor (1 part destroyed, 1 dropped) 3340 | -7/Waste | Discovered new exit (range 16) 3340 | -7/Waste | Spotted C-40 Crusher 3340 | -7/Waste | Spotted C-40 Crusher 3344 | -7/Waste | Entered Factory 3379 | -7/Factory | Discovered new exit (range 13) 3428 | -7/Factory | Garrison activated, responded to threat 3609 | -7/Factory | Discovered new exit (range 10) 3656 | -7/Factory | Garrison activated, responded to threat 3737 | -7/Factory | Identified exit to Storage 3737 | -7/Factory | Identified exit to Lower Caves 3788 | -7/Factory | Identified exit to Factory 3845 | -7/Factory | Reached level 16 3871 | -7/Factory | Central database locked down 4451 | -7/Factory | Identified exit to Garrison 4454 | -7/Factory | Entered Garrison 4454 | -7/Garrison | Accompanied by 1 ally 4540 | -7/Garrison | Spotted B-75 Beast 4551 | -7/Garrison | Core integrity fell below 50% 4567 | -7/Garrison | Destroyed 7 combat bots 4596 | -7/Garrison | Triggered checkpoint 4600 | -7/Garrison | Reached level 17 4688 | -7/Garrison | Destroyed B-75 Beast 4712 | -7/Garrison | Triggered checkpoint 4724 | -7/Garrison | Garrison Relay disabled 4786 | -7/Garrison | Triggered checkpoint 4788 | -7/Garrison | Triggered checkpoint 4814 | -7/Garrison | Discovered exit to Factory (range 9) 4819 | -7/Garrison | Expanded RIF knowledge: Coupler Efficiency 4826 | -7/Garrison | Triggered checkpoint 4828 | -7/Garrison | Garrison Relay disabled 4895 | -7/Garrison | Discovered exit to Factory (range 8) 4906 | -7/Garrison | Triggered checkpoint 4945 | -7/Garrison | Destroyed 7 combat bots 4988 | -7/Garrison | Discovered exit to Factory (range 15) 5019 | -7/Garrison | Spotted B-75 Beast 5019 | -7/Garrison | Spotted B-75 Beast 5038 | -7/Garrison | Triggered checkpoint 5050 | -7/Garrison | Entered Factory 5052 | -6/Factory | Reached level 18 5065 | -6/Factory | Upgraded with Utility slot (x1) 5143 | -6/Factory | Found Prototype Processor 5143 | -6/Factory | Identified Exp. Terrain Scan Processor 5261 | -6/Factory | Discovered new exit (range 7) 5400 | -6/Factory | First assault squad dispatched 5403 | -6/Factory | Discovered new exit (range 15) 5514 | -6/Factory | Discovered new exit (range 13) 5554 | -6/Factory | Reached level 19 5560 | -6/Factory | Upgraded with Utility slot (x1) 5723 | -6/Factory | Found Prototype Processor 5723 | -6/Factory | Identified Exp. Signal Interpreter 5821 | -6/Factory | Destroyed 7 combat bots 5937 | -6/Factory | Garrison activated, responded to threat 5965 | -6/Factory | Destroyed 7 combat bots 5989 | -6/Factory | Discovered new exit (range 11) 5997 | -6/Factory | Identified exit to Lower Caves 5997 | -6/Factory | Identified exit to Factory 6108 | -6/Factory | Garrison activated, responded to threat 6114 | -6/Factory | Reached level 20 6141 | -6/Factory | Destroyed 7 combat bots 6143 | -6/Factory | High security lockdown imminent 6217 | -6/Factory | Sucked down chute 6217 | -6/Factory | Entered Waste 6221 | -6/Waste | Spotted C-40 Crusher 6222 | -6/Waste | Spotted C-40 Crusher 6224 | -6/Waste | Spotted C-40 Crusher 6228 | -6/Waste | Spotted C-40 Crusher 6232 | -6/Waste | EMP discharged 6236 | -6/Waste | Discovered new exit (range 10) 6236 | -6/Waste | Spotted C-40 Crusher 6241 | -6/Waste | Entered Factory 6264 | -6/Factory | Discovered exit to Factory (range 14) 6343 | -6/Factory | Discovered exit to Lower Caves (range 32) 6343 | -6/Factory | Discovered exit to Factory (range 18) 6374 | -6/Factory | Repaired Broken Adv. Coolant Injector 6591 | -6/Factory | First assault squad dispatched 6683 | -6/Factory | Garrison activated, responded to threat 6812 | -6/Factory | Discovered exit to Factory (range 14) 6945 | -6/Factory | Found Prototype Processor 6945 | -6/Factory | Identified Exp. Terrain Scan Processor 7296 | -6/Factory | Reached level 21 7383 | -6/Factory | Upgraded with Utility slot (x1) 7490 | -6/Factory | Destroyed 8 combat bots 7551 | -6/Factory | Spotted B-75 Beast 7555 | -6/Factory | Central database locked down 7669 | -6/Factory | Fabricated I-36 Angel? 7845 | -6/Factory | Fabricated I-36 Angel (x1) 7945 | -6/Factory | Fabricated Force Rifle (x2) 8012 | -6/Factory | Fabricated Adv. Particle Charger (x2) 8131 | -6/Factory | Local fabrication network quarantined 8195 | -6/Factory | Discovered exit to Factory (range 8) 8327 | -6/Factory | Garrison activated, responded to threat 8431 | -6/Factory | Destroyed 9 combat bots 8446 | -6/Factory | High security lockdown imminent 8494 | -6/Factory | Identified exit to Garrison 8494 | -6/Factory | Entered Garrison 8497 | -6/Garrison | Destroyed 8 combat bots 8502 | -6/Garrison | Triggered checkpoint 8504 | -6/Garrison | Garrison Relay disabled 8534 | -6/Garrison | Triggered checkpoint 8607 | -6/Garrison | Core integrity fell below 50% 8655 | -6/Garrison | Reached level 22 8710 | -6/Garrison | Triggered checkpoint 8776 | -6/Garrison | Triggered checkpoint 8794 | -6/Garrison | Garrison Relay disabled 8805 | -6/Garrison | Discovered exit to Factory (range 12) 8864 | -6/Garrison | Triggered checkpoint 8902 | -6/Garrison | Garrison Relay disabled 8951 | -6/Garrison | Discovered exit to Factory (range 10) 9022 | -6/Garrison | Triggered checkpoint 9032 | -6/Garrison | Garrison Relay disabled 9040 | -6/Garrison | Discovered exit to Factory (range 10) 9045 | -6/Garrison | Expanded RIF knowledge: Coupler Efficiency 9047 | -6/Garrison | Entered Factory 9048 | -5/Factory | Core integrity fell below 50% 9084 | -5/Factory | Core integrity fell below 20% 9091 | -5/Factory | Destroyed by S-27 Virus with Autogun Last Messages --------------- 09049_ Detecting nearby Garrison Access. 09053_ K-01 Serf cleans the Nuclear Reactor. 09055_ Connecting with Garrison Access... >>Seal Access door sealed. 09079_ Slug penetrates Nuclear Reactor. 09082_ Y-64 Sentinel suffers critical hit. 09082_ Destroyed Imp. Treads. 09082_ Wave Gun fried. 09082_ Adv. Heat Sink fried. 09082_ Y-64 Sentinel destroyed. 09083_ Nuclear Reactor explodes. 09083_ Recycling Unit disabled. 09083_ Cmb. Gravmag System tumbles out of recycling unit. 09083_ Tesla Rifle tumbles out of recycling unit. 09086_ Slug penetrates Wall. 09086_ Manufacturing Mainframe disabled. 09087_ S-27 Virus misfires. 09088_ U-05 Engineer builds a Door. 09090_ S-27 Virus destroyed. Map ----- +----------------------------------------------------+ | ?????????????????????????????????????????????????? | | ?????????????????????????????????????????????????? | | ?????????????????????????????????????????????????? | | ?????????????????????????????????????????????????? | | ?????????????????????????????????????????????????? | | ?????????????????????????????????????????????????? | | ?????????????????????????????????????????????????? | | ####?????????????????????????????????????????????? | | ??????????????????????????????????????????????? | | ########+#??????#????????????????????????????????? | | ! #????? #????????????????????????????????? | | ! [ #???? #????????????????????????????????? | | #???? +????????????????????????????????? | | #??? #????????????????????????????????? | | #+########### #????????????????????????????????? | | #????????????????????????????????? | | #????????????????????????????????? | | *! #????????????????????????????????? | | *! #????????????????????????????????? | | *= #######??????????????????????????? | | ?????????????????????????? | | ?????????????????????????? | | ??????????? ?????????????? | | ###!! #######+#######??????? ?????????????? | | ??#!! #??? #[######? ""?????????????? | | ??# ! #?????""" #@*= # """????????????? | | ??# #?# """" #=*= # """ ""?????????? | | ??# #?# """" **= ????????? | | ??# #?# """" """ ""?????????? | | ??# """ #?# """????????????? | | ??# """ #?# ! R """ ""?????????? | | ??# """ #?# ????????? | | ??# #?######### s """ ""?????????? | | ??# """ ######????# [%= = """????????????? | | ### """ #????# s s [ + """????????????? | | """ ###### u ??????????? | | u s "" #Rh ?????????? | | """ ##### ] # ?????????? | | # """ [! #???########?# ##??????????? | | # """ [! +????????????? #???????????? | | # ! #??????????????? +???????????? | | # """ =#????????????????????????????? | | ?? """ """ #????????????????????????????? | | ? """ """ #????????????????????????????? | | ? ? """ #????????????????????????????? | | ?????""" #????????????????????????????? | | ?????""" ????????????????????????????? | | ??????"" ###########???????????????????????????? | | ??????? ##?????????????????????????????????????? | | ???????" ???????????????????????????????????????? | +----------------------------------------------------+ Best States ------------- Heat Dissipation 55 Coolant Potential 100 Energy Generation 32 Energy Capacity 415 Matter Stores 300 Matter Capacity 300 Sight Range 16 Terrain Scan Density 10 Core Shielding 20 Weapon Cycling 15 Phase Shifting 5 Evasion (%) 79 Targeting Accuracy 16 Target Analysis 6 Core Analysis 6 Armor Integrity Analysis 33 Energy Filtering 30 Particle Charging 20 Offensive Hacking 15 Defensive Hacking 15 Item Schematics ----------------- Lightning Gun | -7/Factory | Hacked Quantum Capacitor | -7/Factory | Downloaded Hpw. Shock Rifle | -7/Factory | Hacked Force Rifle | -6/Factory | Scanalyzed Adv. Particle Charger | -6/Factory | Hacked Robot Schematics ------------------ Y-54 Guardian | -7/Factory | Hacked I-36 Angel | -6/Factory | Hacked Fabricated ------------ I-36 Angel | x1 | -6/Factory I-36 Angel | x1 | -6/Factory Force Rifle | x2 | -6/Factory Adv. Particle Charger | x2 | -6/Factory Alien Tech Used ----------------- None Achievements -------------- Below Challenges ------------ None RPGLIKE | -11 -10 -10 -10 -9 -8 -8 -8 -7 -7 -7 -7 -6 -6 -6 -6 -5 --------- Run | Scr Mat Min Exi Min Mat Gar Mat Fac Was Fac Gar Fac Was Fac Gar Fac Levels Raised 21 | . 1 1 . 1 3 4 1 3 . 1 1 3 . 1 1 . XP Earned 35313 | 3000 2578 500 200 1550 5325 5071 1797 4371 97 2059 1131 4229 46 2191 563 605 XP Spent 32450 | . 4500 1420 . 800 5180 1400 . 10350 . 1000 . 4900 . 2900 . . Upgrades 43 | . 12 4 . 1 9 2 . 11 . 1 . 2 . 1 . . Power Slot 1 | . 1 . . . . . . . . . . . . . . . Propulsion Slot 1 | . 1 . . . . . . . . . . . . . . . Utility Slot 9 | . 1 . . . 1 . . 4 . . . 2 . 1 . . Weapon Slot 3 | . 1 . . . 2 . . . . . . . . . . . Heat Dissipation 5 | . . 2 . . 3 . . . . . . . . . . . Mass Support 6 | . 2 . . . . 1 . 3 . . . . . . . . Inventory Capacity 4 | . . . . . 1 . . 2 . 1 . . . . . . Ranged Accuracy 8 | . 2 2 . 1 2 1 . . . . . . . . . . Hack Attack % 3 | . 2 . . . . . . 1 . . . . . . . . Hack Defense % 3 | . 2 . . . . . . 1 . . . . . . . . Protomatter Created 5400 | . 222 . . 173 403 321 299 670 . 764 531 938 . 934 68 77 Integrity Restored 6833 | . 588 . . 271 425 293 258 427 . 900 1016 1078 . 1424 153 . Core 5369 | . 445 . . 223 336 213 212 363 . 669 874 728 . 1153 153 . Parts 1464 | . 143 . . 48 89 80 46 64 . 231 142 350 . 271 . . Protomatter Decayed 2347 | . 3 . . 90 289 166 173 451 . 339 133 355 . 346 2 . Game ------ Seed HeavyFlightMinigun Manual? 0 Play Time 02:47:26 Cumulative 144.6 hours Start 2020.01.11 @ 13:58:16 End 2020.01.12 @ 00:37:18 Sessions 3 Manual Loads 0 Difficulty Rogue Special Mode Winter2019/RPGLIKE Game No. 145 Rogue 145 Adventurer 0 Explorer 0 Win Type - Total 11 Types 10/0/0/1/0/0/0 Lore% 72 Gallery% 71 Achievement% 63 Wizard Run 0 Options --------- ASCII 0 Keyboard 0 Movement Numpad Keybinds 0 Fullscreen 2 Font 18/SmallcapsGlow Map View 76x50 Tactical HUD 1 Map Filters NONE Filters NONE Steam X RUN: 06bddad3-f5f5-4785-a218-ba7ad6b95caf